[Event "Titled Tuesday Blitz June 07 Early 2022"]
[White "Babazada, Khazar"]
[Black "Thavandiran, Shiyam"]
[WhiteFideId "13413554"]
[BlackFideId "2605058"]
[WhiteElo "2406"]
[BlackElo "2357"]
[Result "0-1"]
[Round "07"]
[TimeControl "180+1"]
[Date "2022.06.07"]
[WhiteClock "0:00:26"]
[BlackClock "0:00:04"]

1. e4 {[%clk 0:03:00]}  e6 {[%clk 0:02:59]} 2. d4 {[%clk 0:03:00]}  d5 {[%clk 0:03:00]} 3. Nc3 {[%clk 0:03:00]}  Nf6 {[%clk 0:02:59]} 4. e5 {[%clk 0:03:00]}  Nfd7 {[%clk 0:03:00]} 5. Nce2 {[%clk 0:03:01]}  c5 {[%clk 0:03:00]} 6. c3 {[%clk 0:03:01]}  Nc6 {[%clk 0:03:00]} 7. Nf3 {[%clk 0:03:01]}  b5 {[%clk 0:02:57]} 8. Nf4 {[%clk 0:02:59]}  b4 {[%clk 0:02:56]} 9. Bd3 {[%clk 0:02:58]}  bxc3 {[%clk 0:02:45]} 10. bxc3 {[%clk 0:02:58]}  cxd4 {[%clk 0:02:43]} 11. cxd4 {[%clk 0:02:59]}  Ba6 {[%clk 0:02:43]} 12. O-O {[%clk 0:02:56]}  Bxd3 {[%clk 0:02:43]} 13. Qxd3 {[%clk 0:02:56]}  Be7 {[%clk 0:02:27]} 14. Nh5 {[%clk 0:02:51]}  O-O {[%clk 0:02:26]} 15. h3 {[%clk 0:02:48]}  Re8 {[%clk 0:02:07]} 16. Nh2 {[%clk 0:02:44]}  g6 {[%clk 0:01:55]} 17. Ng4 {[%clk 0:02:24]}  Kh8 {[%clk 0:01:36]} 18. Nf4 {[%clk 0:02:00]}  Rc8 {[%clk 0:01:11]} 19. Be3 {[%clk 0:01:45]}  Bf8 {[%clk 0:01:07]} 20. g3 {[%clk 0:01:34]}  Na5 {[%clk 0:01:03]} 21. h4 {[%clk 0:01:32]}  Nc4 {[%clk 0:00:50]} 22. Bc1 {[%clk 0:01:28]}  f5 {[%clk 0:00:42]} 23. Ne3 {[%clk 0:01:12]}  Kg8 {[%clk 0:00:18]} 24. h5 {[%clk 0:00:59]}  g5 {[%clk 0:00:18]} 25. Nxe6 {[%clk 0:00:58]}  Rxe6 {[%clk 0:00:17]} 26. Qxf5 {[%clk 0:00:58]}  Rcc6 {[%clk 0:00:06]} 27. Nxd5 {[%clk 0:00:57]}  Ndxe5 {[%clk 0:00:06]} 28. Ne3 {[%clk 0:00:44]}  Nf7 {[%clk 0:00:07]} 29. d5 {[%clk 0:00:44]}  Re5 {[%clk 0:00:07]} 30. Qf3 {[%clk 0:00:39]}  Nxe3 {[%clk 0:00:07]} 31. fxe3 {[%clk 0:00:34]}  Qxd5 {[%clk 0:00:06]} 32. e4 {[%clk 0:00:33]}  Qe6 {[%clk 0:00:05]} 33. Bb2 {[%clk 0:00:33]}  Rxe4 {[%clk 0:00:04]} 34. Rad1 {[%clk 0:00:26]}  Bc5+ {[%clk 0:00:04]} 35. Kh1 {[%clk 0:00:26]}  Qh3# {[%clk 0:00:04]} 0-1


[Site "https://www.chess.com"]

[Event "Titled Tuesday Blitz June 07 Early 2022"]
[White "Demchenko, Anton"]
[Black "Suleymanli, Aydin"]
[WhiteFideId "4160258"]
[BlackFideId "13413937"]
[WhiteElo "2539"]
[BlackElo "2481"]
[Result "1/2-1/2"]
[Round "07"]
[TimeControl "180+1"]
[Date "2022.06.07"]
[WhiteClock "0:00:24"]
[BlackClock "0:00:45"]

1. e4 {[%clk 0:03:00]}  c6 {[%clk 0:02:52]} 2. d4 {[%clk 0:03:00]}  d5 {[%clk 0:02:53]} 3. e5 {[%clk 0:03:01]}  Bf5 {[%clk 0:02:53]} 4. Bd3 {[%clk 0:03:01]}  Bxd3 {[%clk 0:02:52]} 5. Qxd3 {[%clk 0:03:02]}  Qa5+ {[%clk 0:02:51]} 6. c3 {[%clk 0:03:03]}  e6 {[%clk 0:02:50]} 7. Ne2 {[%clk 0:03:03]}  Qa6 {[%clk 0:02:49]} 8. Qd1 {[%clk 0:03:03]}  c5 {[%clk 0:02:48]} 9. O-O {[%clk 0:03:04]}  Nd7 {[%clk 0:02:48]} 10. Nd2 {[%clk 0:03:02]}  Ne7 {[%clk 0:02:48]} 11. Nf3 {[%clk 0:03:02]}  h6 {[%clk 0:02:44]} 12. Ng3 {[%clk 0:02:56]}  g6 {[%clk 0:02:35]} 13. Be3 {[%clk 0:02:55]}  Bg7 {[%clk 0:02:33]} 14. Qd2 {[%clk 0:02:54]}  b6 {[%clk 0:02:23]} 15. b4 {[%clk 0:02:46]}  cxb4 {[%clk 0:02:20]} 16. cxb4 {[%clk 0:02:46]}  Rc8 {[%clk 0:02:21]} 17. a4 {[%clk 0:02:44]}  Rc4 {[%clk 0:02:14]} 18. b5 {[%clk 0:02:33]}  Qb7 {[%clk 0:02:13]} 19. Rfc1 {[%clk 0:02:32]}  h5 {[%clk 0:01:53]} 20. h4 {[%clk 0:02:31]}  O-O {[%clk 0:01:51]} 21. Bg5 {[%clk 0:02:13]}  Nf5 {[%clk 0:01:42]} 22. Nxf5 {[%clk 0:02:12]}  exf5 {[%clk 0:01:42]} 23. Re1 {[%clk 0:01:55]}  Re8 {[%clk 0:01:39]} 24. Rac1 {[%clk 0:01:46]}  Rxc1 {[%clk 0:01:30]} 25. Rxc1 {[%clk 0:01:45]}  Rc8 {[%clk 0:01:28]} 26. Bh6 {[%clk 0:01:02]}  Nf8 {[%clk 0:01:21]} 27. Bxg7 {[%clk 0:01:03]}  Kxg7 {[%clk 0:01:22]} 28. Ng5 {[%clk 0:01:02]}  Rc7 {[%clk 0:01:04]} 29. g3 {[%clk 0:00:45]}  Qc8 {[%clk 0:01:03]} 30. Rxc7 {[%clk 0:00:45]}  Qxc7 {[%clk 0:01:04]} 31. Qb4 {[%clk 0:00:43]}  f4 {[%clk 0:00:52]} 32. gxf4 {[%clk 0:00:29]}  Qc1+ {[%clk 0:00:50]} 33. Kg2 {[%clk 0:00:29]}  Qxf4 {[%clk 0:00:50]} 34. Qe7 {[%clk 0:00:22]}  Qg4+ {[%clk 0:00:47]} 35. Kf1 {[%clk 0:00:23]}  Qd1+ {[%clk 0:00:43]} 36. Kg2 {[%clk 0:00:23]}  Qg4+ {[%clk 0:00:44]} 37. Kf1 {[%clk 0:00:24]}  Qd1+ {[%clk 0:00:44]} 38. Kg2 {[%clk 0:00:24]}  Qg4+ {[%clk 0:00:45]} 1/2-1/2


[Site "https://www.chess.com"]

[Event "Titled Tuesday Blitz June 07 Early 2022"]
[White "Gong, Patrick"]
[Black "Xu, Yi"]
[WhiteFideId "3222500"]
[BlackFideId "8605564"]
[WhiteElo "2103"]
[BlackElo "2471"]
[Result "0-1"]
[Round "07"]
[TimeControl "180+1"]
[Date "2022.06.07"]
[WhiteClock "0:00:03"]
[BlackClock "0:00:11"]

1. g3 {[%clk 0:03:00]}  d5 {[%clk 0:02:58]} 2. Bg2 {[%clk 0:03:00]}  Nf6 {[%clk 0:02:58]} 3. d3 {[%clk 0:02:58]}  e5 {[%clk 0:02:58]} 4. Nf3 {[%clk 0:02:58]}  Nbd7 {[%clk 0:02:56]} 5. O-O {[%clk 0:02:57]}  Bd6 {[%clk 0:02:56]} 6. Nc3 {[%clk 0:02:56]}  c6 {[%clk 0:02:56]} 7. e4 {[%clk 0:02:55]}  O-O {[%clk 0:02:49]} 8. a3 {[%clk 0:02:54]}  d4 {[%clk 0:02:48]} 9. Ne2 {[%clk 0:02:49]}  c5 {[%clk 0:02:47]} 10. Nh4 {[%clk 0:02:41]}  Re8 {[%clk 0:02:47]} 11. c3 {[%clk 0:02:34]}  Bf8 {[%clk 0:02:35]} 12. Bd2 {[%clk 0:02:28]}  b5 {[%clk 0:02:34]} 13. a4 {[%clk 0:02:14]}  bxa4 {[%clk 0:02:30]} 14. Qxa4 {[%clk 0:02:09]}  Nb6 {[%clk 0:02:29]} 15. Qc2 {[%clk 0:02:06]}  Be6 {[%clk 0:02:17]} 16. c4 {[%clk 0:02:05]}  Nfd7 {[%clk 0:02:14]} 17. h3 {[%clk 0:02:00]}  Nc8 {[%clk 0:02:09]} 18. f4 {[%clk 0:01:55]}  f6 {[%clk 0:02:09]} 19. Ba5 {[%clk 0:01:44]}  Ncb6 {[%clk 0:02:01]} 20. Nf3 {[%clk 0:01:33]}  Bd6 {[%clk 0:01:43]} 21. fxe5 {[%clk 0:01:27]}  Nxe5 {[%clk 0:01:38]} 22. Nf4 {[%clk 0:01:22]}  Nxf3+ {[%clk 0:01:32]} 23. Rxf3 {[%clk 0:01:22]}  Qd7 {[%clk 0:01:29]} 24. Nxe6 {[%clk 0:01:13]}  Qxe6 {[%clk 0:01:27]} 25. Kh2 {[%clk 0:01:10]}  Nd7 {[%clk 0:01:26]} 26. Bd2 {[%clk 0:00:56]}  Ne5 {[%clk 0:01:26]} 27. Rff1 {[%clk 0:00:54]}  Re7 {[%clk 0:01:21]} 28. Ra6 {[%clk 0:00:51]}  Rb7 {[%clk 0:01:20]} 29. b4 {[%clk 0:00:47]}  Rb6 {[%clk 0:01:11]} 30. Rfa1 {[%clk 0:00:44]}  Rxa6 {[%clk 0:00:39]} 31. Rxa6 {[%clk 0:00:44]}  Qe7 {[%clk 0:00:39]} 32. b5 {[%clk 0:00:35]}  Bc7 {[%clk 0:00:38]} 33. Bf4 {[%clk 0:00:31]}  Bb6 {[%clk 0:00:38]} 34. Qa2 {[%clk 0:00:30]}  Rf8 {[%clk 0:00:37]} 35. Qe2 {[%clk 0:00:29]}  g6 {[%clk 0:00:34]} 36. Ra1 {[%clk 0:00:28]}  Kg7 {[%clk 0:00:34]} 37. Rf1 {[%clk 0:00:26]}  h5 {[%clk 0:00:34]} 38. Qd2 {[%clk 0:00:26]}  Rf7 {[%clk 0:00:32]} 39. Bxe5 {[%clk 0:00:25]}  Qxe5 {[%clk 0:00:29]} 40. Qf4 {[%clk 0:00:25]}  Bc7 {[%clk 0:00:26]} 41. Qxe5 {[%clk 0:00:25]}  Bxe5 {[%clk 0:00:22]} 42. h4 {[%clk 0:00:25]}  g5 {[%clk 0:00:22]} 43. hxg5 {[%clk 0:00:20]}  fxg5 {[%clk 0:00:22]} 44. Rxf7+ {[%clk 0:00:20]}  Kxf7 {[%clk 0:00:22]} 45. Kh3 {[%clk 0:00:20]}  Kg6 {[%clk 0:00:20]} 46. g4 {[%clk 0:00:19]}  h4 {[%clk 0:00:18]} 47. Bf1 {[%clk 0:00:19]}  Kf6 {[%clk 0:00:18]} 48. Kg2 {[%clk 0:00:19]}  Bc7 {[%clk 0:00:17]} 49. Kf3 {[%clk 0:00:19]}  Ke5 {[%clk 0:00:17]} 50. Be2 {[%clk 0:00:19]}  h3 {[%clk 0:00:14]} 51. Kg3 {[%clk 0:00:16]}  h2 {[%clk 0:00:14]} 52. Kxh2 {[%clk 0:00:16]}  Kf4 {[%clk 0:00:14]} 53. Kg2 {[%clk 0:00:16]}  Ke3 {[%clk 0:00:14]} 54. Bf1 {[%clk 0:00:08]}  Bf4 {[%clk 0:00:14]} 55. Kg1 {[%clk 0:00:06]}  Kf3 {[%clk 0:00:12]} 56. Bg2+ {[%clk 0:00:05]}  Ke2 {[%clk 0:00:13]} 57. e5 {[%clk 0:00:04]}  Kxd3 {[%clk 0:00:11]} 58. e6 {[%clk 0:00:04]}  Bd6 {[%clk 0:00:11]} 59. Bd5 {[%clk 0:00:04]}  Ke2 {[%clk 0:00:11]} 60. Bg2 {[%clk 0:00:02]}  d3 {[%clk 0:00:10]} 61. Bf1+ {[%clk 0:00:03]}  Ke3 {[%clk 0:00:11]} 0-1


[Site "https://www.chess.com"]

[Event "Titled Tuesday Blitz June 07 Early 2022"]
[White "Gunina, Valentina"]
[Black "Hasangatin, Ramil"]
[WhiteFideId "4167570"]
[BlackFideId "4122160"]
[WhiteElo "2386"]
[BlackElo "2384"]
[Result "1-0"]
[Round "07"]
[TimeControl "180+1"]
[Date "2022.06.07"]
[WhiteClock "0:00:16"]
[BlackClock "0:00:04"]

1. d4 {[%clk 0:03:00]}  d6 {[%clk 0:02:59]} 2. c4 {[%clk 0:02:58]}  e5 {[%clk 0:02:59]} 3. Nf3 {[%clk 0:02:57]}  e4 {[%clk 0:03:00]} 4. Ng5 {[%clk 0:02:57]}  f5 {[%clk 0:03:00]} 5. f3 {[%clk 0:02:45]}  Be7 {[%clk 0:03:00]} 6. Nh3 {[%clk 0:02:34]}  Nf6 {[%clk 0:02:56]} 7. Nc3 {[%clk 0:02:34]}  O-O {[%clk 0:02:49]} 8. Nf2 {[%clk 0:02:34]}  exf3 {[%clk 0:02:42]} 9. gxf3 {[%clk 0:02:34]}  c5 {[%clk 0:02:42]} 10. dxc5 {[%clk 0:02:26]}  dxc5 {[%clk 0:02:42]} 11. Qxd8 {[%clk 0:02:24]}  Rxd8 {[%clk 0:02:42]} 12. e4 {[%clk 0:02:13]}  fxe4 {[%clk 0:02:29]} 13. Nfxe4 {[%clk 0:02:10]}  Nxe4 {[%clk 0:02:27]} 14. Nxe4 {[%clk 0:02:10]}  Bh4+ {[%clk 0:02:19]} 15. Ke2 {[%clk 0:02:02]}  Nc6 {[%clk 0:02:19]} 16. Be3 {[%clk 0:01:48]}  Be6 {[%clk 0:02:14]} 17. b3 {[%clk 0:01:43]}  Nd4+ {[%clk 0:01:51]} 18. Bxd4 {[%clk 0:01:43]}  Rxd4 {[%clk 0:01:51]} 19. Nxc5 {[%clk 0:01:33]}  Re8 {[%clk 0:01:51]} 20. Ne4 {[%clk 0:01:29]}  Bg4 {[%clk 0:01:23]} 21. Ke3 {[%clk 0:01:29]}  Bxf3 {[%clk 0:01:18]} 22. Kxf3 {[%clk 0:01:13]}  Rexe4 {[%clk 0:01:07]} 23. Bd3 {[%clk 0:01:02]}  Rf4+ {[%clk 0:00:59]} 24. Ke2 {[%clk 0:01:02]}  Rf2+ {[%clk 0:00:47]} 25. Ke3 {[%clk 0:01:03]}  Rd8 {[%clk 0:00:41]} 26. Be4 {[%clk 0:00:58]}  Re8 {[%clk 0:00:33]} 27. Kd3 {[%clk 0:00:57]}  Bg5 {[%clk 0:00:30]} 28. Bd5+ {[%clk 0:00:47]}  Kh8 {[%clk 0:00:27]} 29. Rae1 {[%clk 0:00:46]}  Rd2+ {[%clk 0:00:20]} 30. Kc3 {[%clk 0:00:46]}  Rde2 {[%clk 0:00:21]} 31. Rxe2 {[%clk 0:00:43]}  Rxe2 {[%clk 0:00:22]} 32. Bxb7 {[%clk 0:00:40]}  Rxa2 {[%clk 0:00:19]} 33. Bd5 {[%clk 0:00:33]}  Bf6+ {[%clk 0:00:18]} 34. Kb4 {[%clk 0:00:32]}  Be7+ {[%clk 0:00:14]} 35. Kb5 {[%clk 0:00:31]}  g6 {[%clk 0:00:09]} 36. h4 {[%clk 0:00:29]}  Kg7 {[%clk 0:00:09]} 37. h5 {[%clk 0:00:29]}  Kf6 {[%clk 0:00:08]} 38. Rf1+ {[%clk 0:00:26]}  Ke5 {[%clk 0:00:08]} 39. Rf7 {[%clk 0:00:22]}  Bg5 {[%clk 0:00:08]} 40. Rxh7 {[%clk 0:00:21]}  gxh5 {[%clk 0:00:08]} 41. Rxh5 {[%clk 0:00:21]}  Kf6 {[%clk 0:00:09]} 42. c5 {[%clk 0:00:19]}  Be3 {[%clk 0:00:07]} 43. Rh3 {[%clk 0:00:18]}  Bd4 {[%clk 0:00:05]} 44. c6 {[%clk 0:00:17]}  a6+ {[%clk 0:00:04]} 45. Kc4 {[%clk 0:00:16]}  Bb6 {[%clk 0:00:03]} 46. Rh6+ {[%clk 0:00:16]}  Ke5 {[%clk 0:00:03]} 47. Re6+ {[%clk 0:00:16]}  Kf5 {[%clk 0:00:04]} 48. Re7 {[%clk 0:00:14]}  Rc2+ {[%clk 0:00:04]} 49. Kd3 {[%clk 0:00:15]}  Rc5 {[%clk 0:00:04]} 50. Be4+ {[%clk 0:00:15]}  Kf6 {[%clk 0:00:04]} 51. Rb7 {[%clk 0:00:16]}  Ba5 {[%clk 0:00:04]} 52. b4 {[%clk 0:00:16]} 1-0


[Site "https://www.chess.com"]

[Event "Titled Tuesday Blitz June 07 Early 2022"]
[White "Ivic, Velimir"]
[Black "Xiong, Jeffery"]
[WhiteFideId "950122"]
[BlackFideId "2047640"]
[WhiteElo "2610"]
[BlackElo "2714"]
[Result "0-1"]
[Round "07"]
[TimeControl "180+1"]
[Date "2022.06.07"]
[WhiteClock "0:00:01"]
[BlackClock "0:00:07"]

1. e4 {[%clk 0:03:00]}  e5 {[%clk 0:03:00]} 2. Nf3 {[%clk 0:03:01]}  Nf6 {[%clk 0:03:00]} 3. Nxe5 {[%clk 0:02:58]}  d6 {[%clk 0:03:01]} 4. Nf3 {[%clk 0:02:58]}  Nxe4 {[%clk 0:03:01]} 5. d4 {[%clk 0:02:59]}  d5 {[%clk 0:03:01]} 6. Bd3 {[%clk 0:02:59]}  Bf5 {[%clk 0:03:01]} 7. O-O {[%clk 0:02:59]}  Be7 {[%clk 0:03:02]} 8. Re1 {[%clk 0:02:56]}  O-O {[%clk 0:03:02]} 9. Nbd2 {[%clk 0:02:56]}  Nd6 {[%clk 0:03:02]} 10. Nf1 {[%clk 0:02:57]}  Bg6 {[%clk 0:03:02]} 11. Ne5 {[%clk 0:02:51]}  Bxd3 {[%clk 0:03:02]} 12. Qxd3 {[%clk 0:02:52]}  Nd7 {[%clk 0:03:01]} 13. Ng3 {[%clk 0:02:51]}  Re8 {[%clk 0:03:01]} 14. Bf4 {[%clk 0:02:48]}  c6 {[%clk 0:03:00]} 15. Re2 {[%clk 0:02:47]}  Nf8 {[%clk 0:01:46]} 16. Rae1 {[%clk 0:02:42]}  Ne6 {[%clk 0:01:47]} 17. Bd2 {[%clk 0:02:33]}  Bf6 {[%clk 0:01:47]} 18. Nh5 {[%clk 0:02:32]}  Bxe5 {[%clk 0:01:47]} 19. dxe5 {[%clk 0:02:14]}  Ne4 {[%clk 0:01:47]} 20. Ng3 {[%clk 0:01:50]}  Nxg3 {[%clk 0:01:37]} 21. hxg3 {[%clk 0:01:49]}  Qb6 {[%clk 0:01:37]} 22. b3 {[%clk 0:01:45]}  Qb5 {[%clk 0:01:13]} 23. Qe3 {[%clk 0:01:41]}  d4 {[%clk 0:01:12]} 24. Qe4 {[%clk 0:01:34]}  Rad8 {[%clk 0:01:12]} 25. f4 {[%clk 0:01:24]}  d3 {[%clk 0:01:09]} 26. c4 {[%clk 0:01:18]}  Qa6 {[%clk 0:01:06]} 27. Rf2 {[%clk 0:01:17]}  Qxa2 {[%clk 0:00:59]} 28. f5 {[%clk 0:01:16]}  Nd4 {[%clk 0:00:58]} 29. Bg5 {[%clk 0:00:39]}  Ne2+ {[%clk 0:00:34]} 30. Rfxe2 {[%clk 0:00:38]}  dxe2 {[%clk 0:00:35]} 31. Bxd8 {[%clk 0:00:35]}  Rxd8 {[%clk 0:00:36]} 32. Rxe2 {[%clk 0:00:35]}  Qxb3 {[%clk 0:00:34]} 33. e6 {[%clk 0:00:34]}  Qd1+ {[%clk 0:00:21]} 34. Kh2 {[%clk 0:00:34]}  Qd6 {[%clk 0:00:20]} 35. Qg4 {[%clk 0:00:10]}  fxe6 {[%clk 0:00:17]} 36. f6 {[%clk 0:00:09]}  Qd7 {[%clk 0:00:10]} 37. Rxe6 {[%clk 0:00:10]}  Rf8 {[%clk 0:00:10]} 38. Qe4 {[%clk 0:00:05]}  Rxf6 {[%clk 0:00:07]} 39. Re7 {[%clk 0:00:01]}  Qf5 {[%clk 0:00:07]} 40. Re8+ {[%clk 0:00:01]}  Kf7 {[%clk 0:00:07]} 41. Re7+ {[%clk 0:00:01]}  Kg6 {[%clk 0:00:07]} 0-1


[Site "https://www.chess.com"]

[Event "Titled Tuesday Blitz June 07 Early 2022"]
[White "Jumabayev, Rinat"]
[Black "Janaszak, Dawid"]
[WhiteFideId "13702661"]
[BlackFideId "1119206"]
[WhiteElo "2561"]
[BlackElo "2199"]
[Result "1-0"]
[Round "07"]
[TimeControl "180+1"]
[Date "2022.06.07"]
[WhiteClock "0:00:24"]
[BlackClock "0:00:07"]

1. e4 {[%clk 0:03:00]}  c6 {[%clk 0:02:59]} 2. Nf3 {[%clk 0:03:00]}  d5 {[%clk 0:02:58]} 3. d3 {[%clk 0:03:00]}  g6 {[%clk 0:02:56]} 4. Be2 {[%clk 0:03:00]}  Bg7 {[%clk 0:02:56]} 5. O-O {[%clk 0:03:00]}  Nd7 {[%clk 0:02:37]} 6. exd5 {[%clk 0:03:00]}  cxd5 {[%clk 0:02:37]} 7. d4 {[%clk 0:03:01]}  Ngf6 {[%clk 0:02:36]} 8. Bd3 {[%clk 0:02:57]}  O-O {[%clk 0:02:35]} 9. Re1 {[%clk 0:02:57]}  Nb8 {[%clk 0:02:35]} 10. h3 {[%clk 0:02:55]}  Nc6 {[%clk 0:02:33]} 11. c3 {[%clk 0:02:55]}  Qc7 {[%clk 0:02:30]} 12. Qc2 {[%clk 0:02:52]}  Rb8 {[%clk 0:02:28]} 13. a4 {[%clk 0:02:50]}  a6 {[%clk 0:02:28]} 14. Na3 {[%clk 0:02:50]}  Nh5 {[%clk 0:02:23]} 15. b4 {[%clk 0:02:43]}  e6 {[%clk 0:02:18]} 16. Be3 {[%clk 0:02:39]}  Bd7 {[%clk 0:02:12]} 17. Qd2 {[%clk 0:02:38]}  Ne7 {[%clk 0:01:54]} 18. g4 {[%clk 0:02:37]}  Nf6 {[%clk 0:01:51]} 19. Bf4 {[%clk 0:02:37]}  Qd8 {[%clk 0:01:42]} 20. Bxb8 {[%clk 0:02:34]}  Qxb8 {[%clk 0:01:41]} 21. b5 {[%clk 0:02:29]}  h5 {[%clk 0:01:37]} 22. Ne5 {[%clk 0:02:28]}  hxg4 {[%clk 0:01:34]} 23. hxg4 {[%clk 0:02:29]}  axb5 {[%clk 0:01:31]} 24. axb5 {[%clk 0:02:29]}  Be8 {[%clk 0:01:24]} 25. Nc2 {[%clk 0:02:25]}  Nd7 {[%clk 0:01:23]} 26. f4 {[%clk 0:02:24]}  f6 {[%clk 0:01:19]} 27. Nf3 {[%clk 0:02:19]}  Bf7 {[%clk 0:01:10]} 28. Qh2 {[%clk 0:02:11]}  Qc7 {[%clk 0:01:05]} 29. Ra3 {[%clk 0:02:11]}  Rc8 {[%clk 0:01:03]} 30. g5 {[%clk 0:01:57]}  Nf5 {[%clk 0:00:59]} 31. Ne3 {[%clk 0:01:42]}  Qd6 {[%clk 0:00:52]} 32. Rb3 {[%clk 0:01:41]}  Ra8 {[%clk 0:00:47]} 33. Ng4 {[%clk 0:01:41]}  fxg5 {[%clk 0:00:41]} 34. Nxg5 {[%clk 0:01:39]}  Qe7 {[%clk 0:00:27]} 35. Bxf5 {[%clk 0:01:04]}  gxf5 {[%clk 0:00:26]} 36. Nh6+ {[%clk 0:01:05]}  Bxh6 {[%clk 0:00:23]} 37. Qxh6 {[%clk 0:01:06]}  Qf6 {[%clk 0:00:22]} 38. Qh7+ {[%clk 0:00:51]}  Kf8 {[%clk 0:00:21]} 39. Rb2 {[%clk 0:00:51]}  Ra3 {[%clk 0:00:15]} 40. Rg2 {[%clk 0:00:30]}  Rxc3 {[%clk 0:00:12]} 41. Nxf7 {[%clk 0:00:29]}  Qxf7 {[%clk 0:00:08]} 42. Qh8+ {[%clk 0:00:24]}  Ke7 {[%clk 0:00:07]} 43. Rg7 {[%clk 0:00:24]} 1-0


[Site "https://www.chess.com"]

[Event "Titled Tuesday Blitz June 07 Early 2022"]
[White "Kamsky, Gata"]
[Black "Vokhidov, Shamsiddin"]
[WhiteFideId "2000024"]
[BlackFideId "14204223"]
[WhiteElo "2645"]
[BlackElo "2611"]
[Result "1/2-1/2"]
[Round "07"]
[TimeControl "180+1"]
[Date "2022.06.07"]
[WhiteClock "0:00:08"]
[BlackClock "0:00:06"]

1. d4 {[%clk 0:02:59]}  Nf6 {[%clk 0:03:00]} 2. Nf3 {[%clk 0:02:59]}  d5 {[%clk 0:03:00]} 3. Bf4 {[%clk 0:02:54]}  c5 {[%clk 0:03:00]} 4. e3 {[%clk 0:02:54]}  Nc6 {[%clk 0:03:00]} 5. Nbd2 {[%clk 0:02:52]}  Nh5 {[%clk 0:03:01]} 6. dxc5 {[%clk 0:02:51]}  Nxf4 {[%clk 0:02:59]} 7. exf4 {[%clk 0:02:51]}  Qa5 {[%clk 0:02:58]} 8. c3 {[%clk 0:02:49]}  Qxc5 {[%clk 0:02:57]} 9. Bd3 {[%clk 0:02:41]}  g6 {[%clk 0:02:57]} 10. O-O {[%clk 0:02:37]}  Bg7 {[%clk 0:02:57]} 11. Re1 {[%clk 0:02:35]}  Qd6 {[%clk 0:02:56]} 12. g3 {[%clk 0:02:34]}  O-O {[%clk 0:02:53]} 13. Nb3 {[%clk 0:02:17]}  Bg4 {[%clk 0:02:51]} 14. Be2 {[%clk 0:02:16]}  Rad8 {[%clk 0:02:50]} 15. Nfd4 {[%clk 0:02:11]}  Bc8 {[%clk 0:02:50]} 16. Qd2 {[%clk 0:02:00]}  e5 {[%clk 0:02:44]} 17. fxe5 {[%clk 0:01:50]}  Nxe5 {[%clk 0:02:45]} 18. Rad1 {[%clk 0:01:48]}  Rfe8 {[%clk 0:02:45]} 19. Nf3 {[%clk 0:01:39]}  Nc6 {[%clk 0:02:32]} 20. Nbd4 {[%clk 0:01:36]}  a6 {[%clk 0:02:23]} 21. Bf1 {[%clk 0:01:30]}  Bg4 {[%clk 0:02:20]} 22. Rxe8+ {[%clk 0:01:27]}  Rxe8 {[%clk 0:02:21]} 23. Re1 {[%clk 0:01:25]}  Rxe1 {[%clk 0:02:08]} 24. Qxe1 {[%clk 0:01:24]}  Bf6 {[%clk 0:02:08]} 25. Bg2 {[%clk 0:01:20]}  Kg7 {[%clk 0:02:07]} 26. Qd2 {[%clk 0:01:20]}  Na5 {[%clk 0:02:05]} 27. b3 {[%clk 0:01:16]}  Nc6 {[%clk 0:02:04]} 28. Nxc6 {[%clk 0:01:10]}  bxc6 {[%clk 0:02:02]} 29. b4 {[%clk 0:01:10]}  a5 {[%clk 0:01:33]} 30. Nd4 {[%clk 0:01:06]}  axb4 {[%clk 0:01:26]} 31. cxb4 {[%clk 0:01:05]}  Bd7 {[%clk 0:01:15]} 32. h4 {[%clk 0:00:56]}  Qe5 {[%clk 0:01:10]} 33. Nb3 {[%clk 0:00:56]}  Qc3 {[%clk 0:00:51]} 34. Qxc3 {[%clk 0:00:56]}  Bxc3 {[%clk 0:00:52]} 35. a3 {[%clk 0:00:52]}  Kf6 {[%clk 0:00:50]} 36. Bf1 {[%clk 0:00:39]}  Bf5 {[%clk 0:00:46]} 37. Be2 {[%clk 0:00:30]}  Ke5 {[%clk 0:00:42]} 38. f4+ {[%clk 0:00:20]}  Kd6 {[%clk 0:00:41]} 39. Kf2 {[%clk 0:00:20]}  Bb2 {[%clk 0:00:35]} 40. a4 {[%clk 0:00:20]}  Bc2 {[%clk 0:00:34]} 41. Nc5 {[%clk 0:00:19]}  Ba3 {[%clk 0:00:22]} 42. Bd3 {[%clk 0:00:16]}  Bxb4 {[%clk 0:00:18]} 43. Nb7+ {[%clk 0:00:14]}  Kc7 {[%clk 0:00:17]} 44. Bxc2 {[%clk 0:00:15]}  Kxb7 {[%clk 0:00:18]} 45. f5 {[%clk 0:00:15]}  Kc7 {[%clk 0:00:17]} 46. fxg6 {[%clk 0:00:15]}  fxg6 {[%clk 0:00:16]} 47. g4 {[%clk 0:00:14]}  Kd6 {[%clk 0:00:15]} 48. h5 {[%clk 0:00:13]}  gxh5 {[%clk 0:00:15]} 49. gxh5 {[%clk 0:00:14]}  h6 {[%clk 0:00:15]} 50. Ke2 {[%clk 0:00:13]}  Ke5 {[%clk 0:00:16]} 51. Bg6 {[%clk 0:00:10]}  Kd4 {[%clk 0:00:14]} 52. Kd1 {[%clk 0:00:09]}  c5 {[%clk 0:00:15]} 53. Kc2 {[%clk 0:00:09]}  c4 {[%clk 0:00:15]} 54. Bf5 {[%clk 0:00:06]}  Ke5 {[%clk 0:00:14]} 55. Bh3 {[%clk 0:00:06]}  Ba5 {[%clk 0:00:06]} 56. Bg2 {[%clk 0:00:05]}  Kd4 {[%clk 0:00:06]} 57. Bf3 {[%clk 0:00:05]}  Kc5 {[%clk 0:00:05]} 58. Bg2 {[%clk 0:00:05]}  Bc7 {[%clk 0:00:05]} 59. Bf3 {[%clk 0:00:05]}  Bd8 {[%clk 0:00:05]} 60. Bg2 {[%clk 0:00:06]}  d4 {[%clk 0:00:05]} 61. Bf1 {[%clk 0:00:06]}  Ba5 {[%clk 0:00:05]} 62. Be2 {[%clk 0:00:06]}  Kb4 {[%clk 0:00:05]} 63. Bf1 {[%clk 0:00:06]}  Bb6 {[%clk 0:00:05]} 64. Be2 {[%clk 0:00:06]}  Kc5 {[%clk 0:00:05]} 65. Bf1 {[%clk 0:00:07]}  Ba5 {[%clk 0:00:06]} 66. Be2 {[%clk 0:00:07]}  Kd5 {[%clk 0:00:07]} 67. Bf1 {[%clk 0:00:07]}  Bb4 {[%clk 0:00:06]} 68. Be2 {[%clk 0:00:08]}  Kc5 {[%clk 0:00:05]} 69. Bf1 {[%clk 0:00:08]}  Ba5 {[%clk 0:00:06]} 1/2-1/2


[Site "https://www.chess.com"]